bitfinex/quotes_SOLUSD_20260120
["timestamp","ask_amount","ask_price","bid_price","bid_amount"]
[1768889037200,4.43509444,132.91,132.86,6.94682226]
[1768889038008,4.06090949,132.9,132.86,6.94682226]
[1768889039409,4.06090949,132.9,132.86,4.33502884]
[1768889039586,4.06090949,132.9,132.85,75.97380217]
[1768889039787,7.52466131,132.9,132.86,4.33502884]
[1768889040007,4.06090949,132.89,132.86,4.33502884]
[1768889041788,4.06090949,132.88,132.83,6.94682226]
[1768889041987,4.06090949,132.88,132.82,6.94682226]
[1768889042214,4.06090949,132.88,132.83,4.33502884]
[1768889042808,4.06090949,132.87,132.83,4.33502884]
[1768889043214,4.06090949,132.87,132.82,4.33502884]
[1768889043402,4.06090949,132.85,132.81,7.04682226]
[1768889043994,4.06090949,132.85,132.81,4.43502884]
[1768889044202,4.06090949,132.85,132.81,7.04682226]
[1768889045917,4.06090949,132.85,132.81,4.43502884]
[1768889047719,4.06090949,132.84,132.81,0.1]
[1768889050219,4.06090949,132.84,132.81,4.43502884]
[1768889052214,4.06090949,132.83,132.81,0.1]
[1768889052418,4.0009095,132.83,132.81,0.1]
[1768889053626,3.94090951,132.83,132.81,0.1]
[1768889059547,4.06090949,132.85,132.82,4.36248371]
[1768889060421,4.06090949,132.86,132.83,4.36248371]
[1768889061628,4.0009095,132.86,132.83,4.36248371]
[1768889063310,2.61290651,132.86,132.82,4.49478699]
[1768889063637,4.31309749,132.85,132.82,4.49478699]
[1768889063811,4.31309749,132.85,132.81,12.12409638]
[1768889064429,4.31309749,132.85,132.82,4.49478699]
[1768889067128,4.31309749,132.85,132.81,4.59478699]
[1768889069518,4.31309749,132.85,132.81,0.1]
[1768889069721,4.31309749,132.84,132.81,0.1]
[1768889072317,10.14029898,132.85,132.81,0.1]
[1768889072318,4.31309749,132.83,132.81,0.1]
[1768889073719,4.31309749,132.82,132.8,0.1]
[1768889073926,4.31309749,132.81,132.8,0.1]
[1768889074924,4.31309749,132.8,132.77,0.1]
[1768889075110,2.61290651,132.8,132.77,0.1]
[1768889075630,7.52973749,132.81,132.77,0.1]
[1768889075838,7.52973749,132.81,132.77,4.59478699]
[1768889075839,10.142644,132.81,132.77,4.59478699]
[1768889076031,2.61290651,132.8,132.77,0.1]
[1768889077012,4.31309749,132.79,132.77,0.1]
[1768889080034,4.2530975,132.79,132.77,0.1]
[1768889083238,4.0834301,132.78,132.77,0.1]
[1768889083938,4.0834301,132.79,132.77,0.1]
[1768889088035,4.0834301,132.78,132.77,0.1]
[1768889088436,4.0834301,132.77,132.74,0.1]
[1768889088743,4.02343011,132.77,132.74,0.1]
[1768889088919,4.02343011,132.77,132.74,4.42582552]
[1768889091622,4.0834301,132.76,132.74,0.1]
[1768889091831,4.02343011,132.76,132.74,0.1]
[1768889092035,2.61290651,132.76,132.74,0.1]
[1768889092436,10.14495754,132.77,132.74,0.1]
[1768889093646,2.61290651,132.77,132.74,0.1]
[1768889093850,4.44856416,132.76,132.74,0.1]
[1768889096150,11.9811009,132.76,132.74,0.1]
[1768889098141,4.44856416,132.76,132.74,4.40929581]
[1768889098337,4.44856416,132.77,132.74,4.40929581]
[1768889098527,14.5929056,132.78,132.74,4.40929581]
[1768889098728,4.44856416,132.77,132.74,4.40929581]
[1768889100455,4.44856416,132.75,132.74,0.1]
[1768889100656,4.38856417,132.75,132.74,0.1]
[1768889101038,2.61290651,132.76,132.74,0.1]
[1768889102158,7.53295668,132.75,132.74,0.1]
[1768889102534,11.98152084,132.75,132.74,0.1]
[1768889102961,4.44856416,132.74,132.72,0.1]
[1768889103167,7.53295668,132.75,132.72,4.40929581]
[1768889103335,7.53262318,132.76,132.72,4.40929581]
[1768889103535,10.14552969,132.76,132.72,4.40929581]
[1768889105168,4.44856416,132.75,132.72,4.40929581]
[1768889105340,4.38856417,132.75,132.72,4.40929581]
[1768889106855,11.92155948,132.75,132.72,4.40929581]
[1768889107246,4.38856417,132.75,132.72,4.40929581]
[1768889110056,7.06147067,132.77,132.73,4.30929581]
[1768889110242,4.44856416,132.77,132.74,4.30929581]
[1768889113442,11.98013021,132.78,132.75,4.30929581]
[1768889114666,7.53156605,132.78,132.75,4.30929581]
[1768889114962,4.44856416,132.76,132.73,4.30929581]
[1768889115143,7.00147068,132.76,132.73,4.30929581]
[1768889115758,4.38856417,132.76,132.73,4.30929581]
[1768889116660,4.32856418,132.76,132.73,4.30929581]
[1768889116966,10.14556272,132.76,132.72,4.40929581]
[1768889117667,7.53265621,132.76,132.72,4.40929581]
[1768889118063,7.47265622,132.76,132.72,4.40929581]
[1768889118259,7.41265623,132.76,132.72,4.40929581]
[1768889118969,4.44856416,132.75,132.72,4.40929581]
[1768889122576,28.4800008,132.78,132.74,4.30929581]
[1768889122757,4.44856416,132.77,132.74,4.30929581]
[1768889123149,11.98046832,132.77,132.74,4.30929581]
[1768889123671,4.15404762,132.76,132.73,4.0538635]
[1768889125359,4.09404763,132.76,132.73,4.0538635]
[1768889130186,11.68595178,132.77,132.74,4.0538635]
[1768889130485,4.15404762,132.76,132.74,4.0538635]
[1768889131592,20.65404762,132.78,132.75,4.0538635]
[1768889131893,11.68506327,132.79,132.75,4.0538635]
[1768889132086,4.15404762,132.78,132.75,4.0538635]
[1768889133196,4.15404762,132.75,132.72,0.1]
[1768889133576,4.09404763,132.75,132.72,0.1]
[1768889133974,4.09404763,132.75,132.72,4.1538635]
[1768889134369,4.03404764,132.75,132.72,4.1538635]
[1768889135087,4.03404764,132.75,132.72,0.1]
[1768889135290,4.03404764,132.75,132.72,4.1538635]
[1768889136574,11.68672013,132.76,132.73,4.0538635]
[1768889137974,4.15404762,132.75,132.73,4.0538635]
[1768889139471,4.15404762,132.76,132.73,4.0538635]
[1768889139878,4.15404762,132.75,132.72,6.77117318]
[1768889141907,4.15404762,132.75,132.72,4.1538635]
[1768889144674,4.15404762,132.75,132.72,6.77117318]
[1768889144875,4.15404762,132.75,132.73,4.22698073]
[1768889152781,4.29817857,132.76,132.73,4.22698073]
[1768889153308,4.28748446,132.77,132.74,4.32124066]
[1768889153987,20.78748446,132.78,132.75,4.32124066]
[1768889154307,4.28748446,132.78,132.75,4.32124066]
[1768889154612,16.5,132.81,132.76,4.32124066]
[1768889154613,4.28748446,132.79,132.76,4.32124066]
[1768889155902,4.28748446,132.78,132.74,4.32124066]
[1768889156990,4.28748446,132.78,132.73,6.93855034]
[1768889157190,4.28748446,132.78,132.73,4.32124066]
[1768889157191,4.28748446,132.77,132.73,4.32124066]
[1768889157508,4.28748446,132.77,132.73,6.93855034]
[1768889157801,4.28748446,132.77,132.73,2.61730968]
[1768889157980,4.28748446,132.77,132.74,4.32124066]
[1768889159592,4.28748446,132.77,132.73,6.93855034]
[1768889160309,4.28748446,132.77,132.74,4.32124066]
[1768889160908,4.28748446,132.78,132.75,4.32124066]
[1768889161084,4.28748446,132.8,132.76,4.32124066]
[1768889162017,4.28748446,132.78,132.74,4.32124066]
[1768889164818,11.81873133,132.79,132.75,4.32124066]
[1768889164993,4.28748446,132.78,132.75,4.32124066]
[1768889170300,4.22748447,132.78,132.75,4.32124066]
[1768889171430,7.53148754,132.78,132.73,4.32124066]
[1768889171609,2.61730968,132.77,132.72,0.1]
[1768889171997,2.61730968,132.77,132.72,4.42124066]
[1768889172318,4.28748446,132.76,132.72,4.42124066]
[1768889177124,4.28748446,132.75,132.72,0.1]
[1768889177332,4.28748446,132.75,132.72,4.42124066]
[1768889178932,11.81954662,132.77,132.72,4.42124066]
[1768889179156,11.81954662,132.77,132.73,4.32124066]
[1768889180335,4.28748446,132.76,132.73,4.32124066]
[1768889180633,4.28748446,132.77,132.73,4.32124066]
[1768889181930,4.28748446,132.77,132.74,4.32124066]
[1768889189132,4.26275483,132.78,132.74,4.32124066]
[1768889190949,4.26275483,132.8,132.76,4.44464999]
[1768889191520,4.26275483,132.8,132.77,4.44464999]
[1768889193933,4.26275483,132.8,132.77,7.06104976]
[1768889195745,4.26275483,132.8,132.77,4.44464999]
[1768889195945,4.26275483,132.79,132.75,4.44464999]
[1768889197044,4.26275483,132.78,132.74,7.53338988]
[1768889197241,4.26275483,132.78,132.74,11.97803987]
[1768889197844,4.26275483,132.78,132.74,4.44464999]
[1768889199329,4.26275483,132.78,132.74,7.06104976]
[1768889199528,4.26275483,132.78,132.75,4.44464999]
[1768889199748,4.20275484,132.78,132.75,4.44464999]
[1768889199949,4.14275485,132.78,132.75,4.44464999]
[1768889202969,4.14275485,132.78,132.74,6.83636833]
[1768889203459,4.14275485,132.78,132.74,4.21996856]
[1768889205556,4.14275485,132.78,132.74,6.83636833]
[1768889205759,4.08275486,132.78,132.74,6.83636833]
[1768889206745,4.08275486,132.78,132.74,14.36984668]
[1768889206945,4.08275486,132.78,132.74,4.21996856]
[1768889207161,4.08275486,132.78,132.74,6.83636833]
[1768889209139,4.08275486,132.78,132.74,4.21996856]
[1768889209871,4.28203972,132.77,132.73,6.83636833]
[1768889210071,4.28203972,132.76,132.72,0.1]
[1768889210370,4.28203972,132.76,132.72,4.31996856]
[1768889216076,6.72821314,132.75,132.72,0.1]
[1768889216249,4.11181337,132.74,132.72,0.1]
[1768889217972,4.11181337,132.74,132.71,0.1]
[1768889219454,11.64562734,132.74,132.71,0.1]
[1768889219660,4.11181337,132.72,132.7,0.1]
[1768889221676,10.15113165,132.72,132.68,4.57762777]
[1768889221847,2.61639977,132.71,132.65,3.92877366]
[1768889222048,42.87138046,132.72,132.64,12.01628824]
[1768889222254,2.61639977,132.71,132.65,2.61639977]
[1768889222454,2.61639977,132.7,132.64,14.63268801]
[1768889222974,2.61639977,132.7,132.65,4.47762777]
[1768889223573,2.61639977,132.7,132.65,12.01622567]
[1768889223781,4.11181337,132.69,132.65,12.01622567]
[1768889226871,4.11181337,132.69,132.65,4.47762777]
[1768889227689,4.11181337,132.69,132.65,14.63249851]
[1768889227873,4.11181337,132.71,132.67,4.47762777]
[1768889229761,4.11181337,132.7,132.67,4.47762777]
[1768889230577,4.11181337,132.67,132.63,4.57762777]
[1768889230773,4.05181338,132.67,132.63,4.57762777]
[1768889231174,4.05181338,132.67,132.63,7.19402754]
[1768889231378,4.05181338,132.67,132.64,4.47762777]
[1768889232452,7.53678924,132.69,132.65,4.47762777]
[1768889232689,4.11181337,132.7,132.66,4.47762777]
[1768889232860,4.11181337,132.7,132.66,7.09402754]
[1768889233887,4.11181337,132.7,132.67,7.09402754]
[1768889234382,4.11181337,132.7,132.67,4.47762777]
[1768889235367,4.11181337,132.69,132.65,4.47762777]
[1768889235575,7.53596433,132.7,132.63,0.1]
[1768889235576,4.11181337,132.67,132.63,0.1]
[1768889237880,4.11181337,132.67,132.63,1.91740086]
[1768889241398,11.64980249,132.67,132.63,1.91740086]
[1768889241572,4.11181337,132.65,132.63,0.1]
[1768889243517,4.11181337,132.65,132.6,0.1]
[1768889243518,4.16359293,132.63,132.6,0.1]
[1768889243687,4.10359294,132.63,132.6,0.1]
[1768889244507,4.10359294,132.63,132.6,2.07740085]
[1768889245096,10.16066588,132.65,132.6,2.07740085]
[1768889245298,2.62197872,132.66,132.61,1.97740085]
[1768889245693,4.16359293,132.65,132.61,1.97740085]
[1768889245901,4.16359293,132.65,132.61,4.59937957]
[1768889246094,4.16359293,132.65,132.62,1.97740085]
[1768889246994,4.16359293,132.65,132.61,1.97740085]
[1768889249726,4.16359293,132.65,132.62,1.97740085]
[1768889249919,4.16359293,132.67,132.62,4.59937957]
[1768889250628,4.16359293,132.67,132.62,1.97740085]
[1768889250819,4.16359293,132.67,132.62,4.59937957]
[1768889251323,4.16359293,132.67,132.63,2.62197872]
[1768889251833,4.16359293,132.67,132.63,1.97740085]
[1768889252137,4.16359293,132.67,132.63,4.59937957]
[1768889253116,4.16359293,132.67,132.64,4.59937957]
[1768889254029,4.16359293,132.66,132.62,4.59937957]
[1768889254240,4.16359293,132.66,132.61,12.13987516]
[1768889254843,4.16359293,132.66,132.61,10.16247431]
[1768889255049,4.16359293,132.66,132.62,1.97740085]
[1768889256652,4.16359293,132.66,132.63,1.97740085]
[1768889257541,4.16359293,132.65,132.61,4.59937957]
[1768889257971,4.16359293,132.67,132.64,1.97740085]
[1768889258641,11.70000152,132.69,132.65,1.97740085]
[1768889258831,11.70000152,132.69,132.65,4.59937957]
[1768889259032,11.70000152,132.69,132.65,3.59937957]
[1768889259232,4.16359293,132.69,132.65,3.59937957]
[1768889260753,4.16359293,132.69,132.65,0.97740085]
[1768889261651,11.70052389,132.68,132.65,0.97740085]
[1768889261864,11.70052389,132.68,132.64,0.97740085]
[1768889262169,4.16359293,132.67,132.63,3.59937957]
[1768889262372,4.16359293,132.67,132.64,0.97740085]
[1768889265150,4.16359293,132.67,132.64,3.59937957]
[1768889266371,4.3238617,132.7,132.66,3.59937957]
[1768889267667,4.3238617,132.71,132.67,3.59937957]
[1768889269675,4.3238617,132.71,132.67,11.13686193]
[1768889270459,4.3238617,132.71,132.68,2.62197872]
[1768889273078,4.3238617,132.71,132.67,3.59937957]
[1768889275282,7.53480598,132.72,132.67,3.59937957]
[1768889275283,4.20094065,132.72,132.68,2.62197872]
[1768889275583,4.20094065,132.72,132.69,0.97740085]
[1768889276581,4.20094065,132.72,132.68,3.59937957]
[1768889276883,4.20094065,132.72,132.68,0.97740085]
[1768889277175,4.20094065,132.73,132.69,3.59937957]
[1768889278576,4.20094065,132.73,132.7,0.97740085]
[1768889279375,4.20094065,132.73,132.7,3.59937957]
[1768889280508,4.20094065,132.75,132.71,3.59937957]
[1768889280781,4.20094065,132.75,132.72,2.62197872]
[1768889281086,4.20094065,132.77,132.74,0.97740085]
[1768889281885,4.20094065,132.78,132.74,0.97740085]
[1768889282184,4.20094065,132.76,132.7,62.47740085]
[1768889282369,4.20094065,132.74,132.68,19.81915972]
[1768889282576,4.14069033,132.74,132.68,11.13615978]
[1768889282887,2.62197872,132.74,132.68,11.13615978]
[1768889283073,2.62197872,132.75,132.69,3.65962989]
[1768889283275,2.62197872,132.76,132.69,3.65962989]
[1768889283586,2.62197872,132.76,132.7,1.03765117]
[1768889284490,4.20094065,132.74,132.7,8.5734167]
[1768889285688,4.20094065,132.74,132.69,11.19576545]
[1768889285897,4.20094065,132.74,132.67,35.3428767]
[1768889285898,4.20094065,132.73,132.68,8.57433066]
[1768889286068,4.20094065,132.73,132.68,11.19630938]
[1768889286888,4.20094065,132.73,132.69,1.03765117]
[1768889288194,4.20094065,132.77,132.71,1.03765117]
[1768889288373,4.20094065,132.76,132.71,3.65962989]
[1768889289093,4.20094065,132.76,132.72,3.65962989]
[1768889289983,4.20094065,132.75,132.71,8.57285067]
[1768889290297,4.20094065,132.75,132.72,2.62197872]
[1768889291899,4.20094065,132.75,132.71,8.57285067]
[1768889292196,4.20094065,132.75,132.71,3.65962989]
[1768889292708,4.20094065,132.75,132.71,1.03765117]
[1768889292996,4.20094065,132.75,132.71,11.19485627]
[1768889293306,4.20094065,132.75,132.72,2.62197872]
[1768889293487,7.53164378,132.78,132.72,3.65962989]
[1768889293488,4.20094065,132.77,132.72,3.65962989]
[1768889294568,4.20094065,132.77,132.72,11.193863]
[1768889295079,4.20094065,132.77,132.73,2.62197872]
[1768889295593,4.20094065,132.77,132.72,11.193863]
[1768889298095,4.20094065,132.78,132.75,1.03765117]
[1768889298292,4.20094065,132.78,132.74,3.65962989]
[1768889299684,4.20094065,132.78,132.74,1.03765117]
[1768889300003,4.20094065,132.78,132.74,3.65962989]
[1768889301106,4.20094065,132.78,132.74,11.19309353]
[1768889302205,4.20094065,132.78,132.74,3.65962989]
[1768889302905,4.20094065,132.77,132.71,62.53765117]
[1768889303203,4.20094065,132.77,132.71,27.6945172]
[1768889303381,4.20094065,132.77,132.72,7.53456321]
[1768889304003,4.16366776,132.76,132.72,7.53456321]
[1768889305312,4.16366776,132.76,132.72,10.15136882]
[1768889305715,4.16366776,132.76,132.72,11.18901999]
[1768889306929,4.16366776,132.76,132.72,8.57221438]
[1768889307240,4.16366776,132.76,132.72,11.18901999]
[1768889308143,4.16366776,132.76,132.71,8.57263981]
[1768889308433,4.16366776,132.76,132.71,11.18944542]
[1768889311127,4.16366776,132.76,132.71,8.57263981]
[1768889311331,4.16366776,132.76,132.71,11.18944542]
[1768889311827,4.16366776,132.76,132.71,8.57263981]
[1768889312036,4.16366776,132.75,132.71,2.61680561]
[1768889312636,4.16366776,132.75,132.71,3.65445678]
[1768889315715,4.16366776,132.75,132.71,1.03765117]
[1768889315915,4.16366776,132.75,132.71,3.65445678]
[1768889320150,4.16366776,132.75,132.71,1.03765117]
[1768889320443,4.16366776,132.75,132.71,3.65445678]
[1768889321639,4.16366776,132.77,132.73,1.03765117]
[1768889321851,4.16366776,132.77,132.74,1.03765117]
[1768889322054,4.16366776,132.77,132.73,3.65445678]
[1768889322754,4.16366776,132.77,132.74,1.03765117]
[1768889323251,4.16366776,132.77,132.74,3.65445678]
[1768889323432,11.62366134,132.78,132.74,3.65445678]
[1768889323754,4.09227457,132.78,132.74,1.03765117]
[1768889323935,4.09227457,132.78,132.75,2.61680561]
[1768889324248,4.09227457,132.78,132.74,3.65445678]
[1768889325252,4.09227457,132.77,132.71,1.03765117]
[1768889325458,6.70908018,132.77,132.71,3.65445678]
[1768889325662,4.09227457,132.76,132.71,3.65445678]
[1768889326029,4.09227457,132.76,132.71,1.03765117]
[1768889326453,4.09227457,132.76,132.71,3.65445678]
[1768889326958,4.09227457,132.75,132.71,1.03765117]
[1768889327157,4.09227457,132.75,132.71,3.65445678]
[1768889327364,4.09227457,132.75,132.71,1.03765117]
[1768889327537,4.09227457,132.75,132.71,3.65445678]
[1768889328354,4.09227457,132.75,132.71,1.03765117]
[1768889329351,11.62579875,132.74,132.71,1.03765117]
[1768889329554,4.09227457,132.74,132.71,1.03765117]
[1768889330337,4.09227457,132.74,132.69,11.19065992]
[1768889330540,4.09227457,132.74,132.68,30.41866423]
[1768889330749,4.09227457,132.74,132.68,11.19138128]
[1768889331037,4.09227457,132.73,132.69,1.03765117]
[1768889331351,4.09227457,132.73,132.69,3.65445678]
[1768889331856,4.09227457,132.73,132.69,1.03765117]
[1768889332057,4.09227457,132.73,132.69,3.65445678]
[1768889333255,4.09227457,132.73,132.69,2.61680561]
[1768889333461,4.09227457,132.73,132.7,1.03765117]
[1768889336963,4.06755811,132.75,132.71,1.03765117]
[1768889339268,4.06755811,132.75,132.71,3.65445678]
[1768889341675,4.06755811,132.74,132.69,1.03765117]
[1768889342144,4.06755811,132.74,132.69,3.65445678]
[1768889342773,4.06755811,132.73,132.68,61.5]
[1768889343080,4.06755811,132.72,132.66,27.69250731]
[1768889344481,4.06755811,132.72,132.67,2.61680561]
[1768889345476,4.06755811,132.71,132.66,17.53765117]
[1768889345682,4.06755811,132.71,132.66,20.15445678]
[1768889346059,4.06755811,132.71,132.67,2.61680561]
[1768889346859,4.06755811,132.71,132.66,17.53765117]
[1768889347179,4.06755811,132.71,132.66,20.15445678]
[1768889347768,4.06755811,132.7,132.66,20.15445678]
[1768889348281,4.06755811,132.7,132.66,17.53765117]
[1768889348579,4.06755811,132.7,132.66,20.15445678]
[1768889348888,4.06755811,132.69,132.62,81.38776069]
[1768889349083,4.06755811,132.68,132.63,10.15625475]
[1768889349382,4.06755811,132.68,132.65,2.61680561]
[1768889350561,4.06755811,132.68,132.65,10.15529085]
[1768889350967,4.06755811,132.71,132.66,3.65445678]
[1768889351575,4.06755811,132.71,132.66,1.03765117]
[1768889351776,4.06755811,132.71,132.66,3.65445678]
[1768889351981,4.06755811,132.7,132.65,11.19308838]
[1768889353486,4.06755811,132.7,132.66,2.61680561]
[1768889353664,4.06755811,132.7,132.66,3.65445678]
[1768889353862,4.06755811,132.7,132.65,8.57628277]
[1768889354080,4.06755811,132.7,132.65,11.19308838]
[1768889356286,7.53481074,132.72,132.67,3.65445678]
[1768889356485,7.53481074,132.72,132.69,3.65445678]
[1768889356486,4.06755811,132.72,132.69,3.65445678]
[1768889358090,4.06755811,132.76,132.71,2.61680561]
[1768889358389,4.06755811,132.75,132.72,2.61680561]
[1768889360405,4.06755811,132.74,132.71,2.61680561]
[1768889361578,4.06755811,132.74,132.71,3.65445678]
[1768889361777,4.06755811,132.74,132.72,2.61680561]
[1768889362205,4.06755811,132.73,132.67,7.53749779]
[1768889362376,4.06755811,132.73,132.67,2.61680561]
[1768889362377,4.06755811,132.72,132.67,2.61680561]
[1768889362568,4.06755811,132.72,132.67,3.65445678]
[1768889363501,4.06755811,132.72,132.67,11.19192183]
[1768889364880,4.06755811,132.72,132.67,11.19379829]
[1768889365816,4.06755811,132.72,132.66,11.19406496]
[1768889365817,4.46713496,132.71,132.66,11.19406496]
[1768889365985,4.46713496,132.71,132.68,2.61868207]
[1768889366310,4.46713496,132.71,132.67,8.57506026]
[1768889366608,4.46713496,132.71,132.68,2.61868207]
[1768889366923,4.46713496,132.71,132.67,8.57506026]
[1768889367129,4.46713496,132.71,132.68,2.61868207]
[1768889367726,4.46713496,132.71,132.67,8.57506026]
[1768889367929,4.46713496,132.71,132.68,2.61868207]
[1768889371926,4.46713496,132.71,132.67,8.57506026]
[1768889372124,4.46713496,132.71,132.68,2.61868207]
[1768889373227,4.46713496,132.73,132.69,3.65633324]
[1768889374314,4.46713496,132.73,132.68,65.15633324]
[1768889374517,4.46713496,132.73,132.68,62.53765117]
[1768889374718,4.46713496,132.73,132.68,65.15633324]
[1768889374912,4.46713496,132.72,132.68,61.5]
[1768889375126,4.46713496,132.72,132.66,3.65633324]
[1768889375127,4.46713496,132.71,132.66,3.65633324]
[1768889375734,4.46713496,132.71,132.66,8.57563998]
[1768889375939,4.46713496,132.71,132.66,11.19432205]
[1768889377536,4.46713496,132.71,132.68,2.61868207]
[1768889377717,4.46713496,132.71,132.67,11.1937853]
[1768889377912,4.46713496,132.71,132.67,10.15613413]
[1768889378239,4.46713496,132.71,132.67,2.61868207]
[1768889379037,4.46713496,132.71,132.67,10.15615192]
[1768889380953,4.46713496,132.71,132.67,7.53746985]
[1768889381120,4.46713496,132.71,132.67,10.15615192]
[1768889381824,4.46713496,132.71,132.67,7.53746985]
[1768889382035,4.46713496,132.71,132.67,10.15615192]
[1768889382967,4.46713496,132.71,132.66,11.19418669]
[1768889384359,4.09019606,132.7,132.66,11.19418669]
[1768889385635,4.09019606,132.73,132.69,3.65633324]
[1768889385858,4.09019606,132.73,132.7,2.61868207]
[1768889386039,4.09019606,132.73,132.69,3.65633324]
[1768889387059,4.09019606,132.73,132.69,11.19239658]
[1768889388563,4.09019606,132.73,132.7,2.61868207]
[1768889388741,4.09019606,132.73,132.69,11.19239658]
[1768889390969,4.09019606,132.73,132.69,8.57371451]
[1768889391170,4.09019606,132.73,132.69,11.19239658]
[1768889391465,4.09019606,132.73,132.7,2.61868207]
[1768889391970,4.09019606,132.73,132.67,1.03765117]
[1768889392163,4.09019606,132.73,132.68,2.61868207]
[1768889393464,7.53409655,132.73,132.68,2.61868207]
[1768889393669,4.30631392,132.72,132.68,2.61868207]
[1768889394481,4.30631392,132.74,132.7,1.03765117]
[1768889394774,4.30631392,132.74,132.69,2.61868207]
[1768889394962,4.30631392,132.74,132.69,3.65633324]
[1768889395676,4.30631392,132.73,132.69,3.65633324]
[1768889395881,4.30631392,132.73,132.69,11.19263439]
[1768889397291,4.30631392,132.73,132.69,10.15498322]
[1768889398883,4.30631392,132.73,132.7,1.03765117]
[1768889399072,4.30631392,132.73,132.7,3.65633324]
[1768889400402,4.30631392,132.73,132.69,11.19263439]
[1768889401873,4.30631392,132.72,132.67,86.5747274]
[1768889402175,4.30631392,132.72,132.67,11.19340947]
[1768889402376,4.30631392,132.72,132.68,3.65633324]
[1768889404887,4.24631393,132.72,132.68,3.65633324]
[1768889405290,4.24631393,132.72,132.69,2.61868207]
[1768889405704,4.24631393,132.72,132.68,8.57450139]
[1768889405901,4.24631393,132.72,132.68,11.19318346]
[1768889409002,4.24631393,132.72,132.68,3.65633324]
[1768889409595,4.24631393,132.72,132.67,11.25355577]
[1768889410178,4.24631393,132.72,132.67,10.15590461]
[1768889410600,4.24631393,132.72,132.67,11.25355577]
[1768889411077,4.24631393,132.72,132.67,8.6348737]
[1768889411395,4.24631393,132.72,132.67,11.25355577]
[1768889411597,4.24631393,132.72,132.65,8.63626561]
[1768889411598,4.30631392,132.7,132.65,8.63626561]
[1768889411901,4.30631392,132.7,132.64,8.63644562]
[1768889412124,4.30631392,132.7,132.65,2.61868207]
[1768889412495,4.30631392,132.69,132.64,8.63644562]
[1768889412703,4.30631392,132.69,132.65,2.61868207]
[1768889412925,4.30631392,132.69,132.65,3.71633323]
[1768889415404,4.30631392,132.69,132.65,11.25471577]
[1768889415928,4.30631392,132.71,132.66,3.71633323]
[1768889416222,4.30631392,132.71,132.66,1.09765116]
[1768889416613,4.30631392,132.71,132.66,3.71633323]
[1768889417018,4.30631392,132.71,132.66,8.63525814]
[1768889417224,4.30631392,132.71,132.66,7.53760698]
[1768889417815,4.30631392,132.71,132.66,8.63525814]
[1768889418329,4.30631392,132.71,132.66,7.53760698]
[1768889418913,4.30631392,132.69,132.64,11.2552142]
[1768889419415,4.24631393,132.69,132.64,11.2552142]
[1768889420324,4.24631393,132.69,132.64,8.63653213]
[1768889420627,4.24631393,132.69,132.64,11.2552142]
[1768889424930,4.24631393,132.69,132.66,1.15765115]
[1768889426824,4.18631394,132.69,132.66,1.15765115]
[1768889427031,4.18631394,132.69,132.65,11.37502813]
[1768889427933,4.18631394,132.69,132.64,72.87587169]
[1768889429311,4.18631394,132.69,132.64,89.39587169]
[1768889429608,4.18631394,132.69,132.64,70.25661341]
[1768889429911,4.18631394,132.69,132.64,72.87587169]
[1768889430130,4.18631394,132.69,132.65,2.61925828]
[1768889430932,4.18631394,132.69,132.64,72.87587169]
[1768889431432,4.18631394,132.69,132.64,8.75661341]
[1768889431630,4.18631394,132.69,132.64,11.37587169]
[1768889431806,4.18631394,132.69,132.64,8.75661341]
[1768889432127,4.18631394,132.69,132.64,11.37587169]
[1768889432341,4.18631394,132.69,132.64,10.15822055]
[1768889432638,4.18631394,132.69,132.64,11.37587169]
[1768889435830,4.18631394,132.69,132.65,3.83690942]
[1768889436832,4.18631394,132.69,132.65,1.21765114]
[1768889437015,4.18631394,132.69,132.65,8.75622398]
[1768889439946,4.18631394,132.69,132.66,1.21765114]
[1768889440117,4.15613323,132.7,132.67,1.21765114]
[1768889440408,4.09613324,132.7,132.67,1.21765114]
[1768889440753,4.09613324,132.7,132.66,11.43469267]
[1768889441039,4.03613325,132.7,132.66,11.43469267]
[1768889441940,4.03613325,132.7,132.66,8.81543439]
[1768889442158,4.03613325,132.7,132.66,11.43469267]
[1768889443066,4.03613325,132.7,132.66,10.15704154]
[1768889443244,4.23742559,132.69,132.65,11.4953001]
[1768889444839,4.23742559,132.69,132.65,10.15764898]
[1768889445158,4.23742559,132.69,132.63,96.8685142]
[1768889445159,4.23742559,132.68,132.63,3.9569094]
[1768889445557,4.23742559,132.68,132.63,11.49635192]
[1768889446861,4.23742559,132.68,132.64,8.87675455]
[1768889447162,4.23742559,132.68,132.64,11.49601283]
[1768889447865,4.1774256,132.68,132.64,11.49601283]
[1768889448053,7.53698412,132.68,132.63,10.15891352]
[1768889448256,2.61925828,132.68,132.63,7.53965524]
[1768889448563,2.61925828,132.68,132.63,7.48965524]
[1768889448734,10.15589563,132.69,132.63,10.10891352]
[1768889449134,10.15589563,132.69,132.63,11.50656463]
[1768889449345,10.15589563,132.69,132.63,8.88730635]
[1768889449544,10.15589563,132.69,132.63,11.50656463]
[1768889449866,4.23742559,132.68,132.63,11.50656463]
[1768889451860,11.77439982,132.68,132.63,8.88730635]